fUST/lending_fUST_20240621
["ID","MTS","AMOUNT","RATE_DAILY","PERIOD"]
[330047641,1718968240680,-178.8560864,0.00041096,2]
[330047643,1718968240689,-150.75878594,0.00042108,2]
[330047645,1718968240699,-166.760716,0.00042458,2]
[330047648,1718968240709,-4299.59,0.0004279,3]
[330047650,1718968240718,-3582.99,0.0004279,3]
[330047651,1718968240728,-2985.83,0.0004279,3]
[330047653,1718968240738,-156.78558002,0.00042799,31]
[330047656,1718968240748,-500.0,0.00042799,31]
[330047658,1718968240758,-183.87609427,0.000428,15]
[330047660,1718968240773,-117219.80184255,0.000428,60]
[330047661,1718968240782,-131050.05463173,0.000428,60]
[330047663,1718968240792,-301.51757188,0.00042816,4]
[330047665,1718968240800,-153.0,0.00042817,2]
[330047667,1718968240811,-153.0,0.00042817,2]
[330047669,1718968240822,-153.0,0.00042817,2]
[330047671,1718968240831,-153.0,0.00042817,2]
[330047673,1718968240843,-153.0,0.00042817,2]
[330047674,1718968240854,-243.0,0.00042818,2]
[330047675,1718968240865,-243.0,0.00042818,2]
[330047676,1718968240875,-243.0,0.00042818,2]
[330047677,1718968240885,-177.83363645,0.00044785,4]
[330047678,1718968240895,-2431.01423821,0.00044865,20]
[330047679,1718968240905,-301.864845,0.00045494,2]
[330047680,1718968240915,-1752.0,0.00045698,2]
[330047681,1718968240924,-243.0,0.00045818,2]
[330047682,1718968240934,-243.0,0.00045818,2]
[330047683,1718968240944,-243.0,0.00045818,2]
[330047684,1718968240953,-1329.9033767,0.00046485,30]
[330047685,1718968240962,-949.36792414,0.0004662,30]
[330047686,1718968240972,-323.24132536,0.00046642,30]
[330047687,1718968240982,-1329.9033767,0.00046669,30]
[330047688,1718968240991,-949.36792414,0.00046696,30]
[330047689,1718968241000,-949.36792414,0.00046784,30]
[330047690,1718968241009,-154.24002068,0.00046835,30]
[330047691,1718968241019,-1329.9033767,0.00047183,30]
[330047692,1718968241029,-949.36792414,0.00047295,30]
[330047693,1718968241038,-1329.9033767,0.00047347,30]
[330047694,1718968241048,-949.36792414,0.00047472,30]
[330047695,1718968241057,-1329.9033767,0.00047516,30]
[330047696,1718968241067,-1329.9033767,0.00047531,30]
[330047697,1718968241076,-1329.9033767,0.00047557,30]
[330047698,1718968241086,-949.36792414,0.00047563,30]
[330047699,1718968241095,-164.1384153,0.0004792,30]
[330047700,1718968241104,-1329.9033767,0.00048079,30]
[330047701,1718968241114,-949.36792414,0.00048104,30]
[330047702,1718968241124,-949.36792414,0.00048148,30]
[330047703,1718968241133,-949.36792414,0.00048149,30]
[330047704,1718968241142,-501.0,0.00048158,2]
[330047705,1718968241151,-150.0,0.00048158,2]
[330047706,1718968241160,-804.91298822,0.00048182,4]
[330047707,1718968241169,-1329.9033767,0.00048183,30]
[330047708,1718968241178,-323.24132536,0.00048431,30]
[330047709,1718968241188,-323.24132536,0.00048463,30]
[330047710,1718968241197,-949.36792414,0.00048497,30]
[330047711,1718968241207,-150.96651358,0.00048532,30]
[330047712,1718968241216,-1329.9033767,0.00048607,30]
[330047713,1718968241226,-949.36792414,0.00048678,30]
[330047714,1718968241235,-1752.0,0.00048698,2]
[330047715,1718968241245,-323.24132536,0.00048814,30]
[330047716,1718968241254,-243.0,0.00048818,2]
[330047717,1718968241264,-243.0,0.00048818,2]
[330047718,1718968241274,-243.0,0.00048818,2]
[330047719,1718968241283,-949.36792414,0.00048921,30]
[330047720,1718968241292,-155.23377826,0.00048953,4]
[330047721,1718968241302,-323.24132536,0.00048954,30]
[330047722,1718968241312,-323.24132536,0.00049063,30]
[330047723,1718968241321,-238.08550274,0.00049315,30]
[330047724,1718968241330,-1329.9033767,0.00049317,30]
[330047725,1718968241338,-949.36792414,0.00049346,30]
[330047726,1718968241347,-323.24132536,0.00049621,30]
[330047727,1718968241357,-1329.9033767,0.00049672,30]
[330047728,1718968241368,-4881.32868739,0.00049744,120]
[330047729,1718968241378,-1329.9033767,0.00049817,30]
[330047730,1718968241387,-323.24132536,0.00049875,30]
[330047731,1718968241397,-4881.32868739,0.00049945,120]
[330047732,1718968241407,-156.008132,0.00049965,4]
[330047733,1718968241417,-323.24132536,0.00049966,30]
[330047734,1718968241427,-4298.34006786,0.0005,60]
[330047735,1718968241436,-1000.0,0.0005,30]
[330047736,1718968241446,-500.0,0.0005,120]
[330047737,1718968241455,-949.36792414,0.00050101,60]
[330047738,1718968241466,-1329.9033767,0.00050118,60]
[330047739,1718968241476,-4881.32868739,0.00050318,120]
[330047740,1718968241486,-323.24132536,0.00050359,60]
[330047741,1718968241496,-323.24132536,0.00050421,60]
[330047742,1718968241506,-1329.9033767,0.00050427,60]
[330047743,1718968241516,-4881.32868739,0.00050533,120]
[330047744,1718968241525,-949.36792414,0.00050545,60]
[330047745,1718968241534,-1329.9033767,0.00050574,60]
[330047746,1718968241543,-323.24132536,0.00050618,60]
[330047747,1718968241552,-198.78866123,0.00050623,60]
[330047748,1718968241563,-949.36792414,0.00050662,60]
[330047749,1718968241572,-1500.0,0.00050684,120]
[330047750,1718968241581,-323.24132536,0.00050792,60]
[330047751,1718968241590,-1329.9033767,0.00050824,60]
[330047752,1718968241599,-4881.32868739,0.00050869,120]
[330047753,1718968241609,-1500.0,0.00050958,120]
[330047754,1718968241618,-323.24132536,0.00050966,60]
[330047755,1718968241627,-150.96651358,0.00050973,60]
[330047756,1718968241636,-87581.52151333,0.00051,30]
[330047757,1718968241646,-1329.9033767,0.00051075,60]
[330047758,1718968241655,-323.24132536,0.00051076,60]
[330047759,1718968241664,-4881.32868739,0.00051087,120]
[330047760,1718968241673,-1329.9033767,0.0005112,60]
[330047761,1718968241683,-323.24132536,0.00051142,60]
[330047762,1718968241692,-501.0,0.00051158,120]
[330047763,1718968241702,-150.0,0.00051158,120]
[330047764,1718968241711,-500.0,0.000512,120]
[330047765,1718968241720,-1500.0,0.00051232,120]
[330047766,1718968241729,-323.24132536,0.00051403,60]
[330047767,1718968241739,-4881.32868739,0.00051505,120]
[330047768,1718968241750,-1500.0,0.00051506,120]
[330047769,1718968241760,-323.24132536,0.00051528,60]
[330047770,1718968241770,-301.864845,0.00051593,2]
[330047771,1718968241783,-159.23604543,0.00051614,4]
[330047772,1718968241869,-323.24132536,0.00051639,60]
[330047773,1718968241880,-4881.32868739,0.00051655,120]
[330047774,1718968241890,-949.36792414,0.00051676,60]
[330047775,1718968241899,-1752.0,0.00051698,2]
[330047776,1718968241908,-1329.9033767,0.00051779,60]
[330047777,1718968241918,-1500.0,0.0005178,120]
[330047778,1718968241928,-243.0,0.00051818,2]
[330047779,1718968241937,-243.0,0.00051818,2]
[330047780,1718968241947,-4881.32868739,0.00051918,120]
[330047781,1718968241957,-1329.9033767,0.00051919,60]
[330047782,1718968241967,-1000.0,0.00051961,14]
[330047783,1718968241976,-155.97078353,0.00051999,60]
[330047784,1718968241985,-268015.50590108,0.00051999,120]
[330047785,1718968241994,-1001.34954174,0.00052,60]
[330047786,1718968242004,-500.0,0.00052054,120]
[330047787,1718968242014,-500.0,0.00052054,120]
[330047788,1718968242024,-510.51275791,0.00052054,120]
[330047789,1718968242034,-500.0,0.00052054,120]
[330047790,1718968242043,-500.0,0.00052054,120]
[330047791,1718968242052,-514.57629985,0.00052054,120]
[330047792,1718968242063,-500.0,0.00052054,120]
[330047793,1718968242072,-502.76452503,0.00052054,120]
[330047794,1718968242082,-500.0,0.00052054,120]
[330047795,1718968242091,-500.0,0.00052054,120]
[330047796,1718968242100,-500.0,0.00052054,120]
[330047797,1718968242109,-500.0,0.00052054,120]
[330047798,1718968242118,-500.0,0.00052054,120]
[330047799,1718968242127,-500.0,0.00052054,120]
[330047800,1718968242137,-1401.39,0.00052054,120]
[330047801,1718968242146,-500.0,0.00052054,120]
[330047802,1718968242155,-342.10714996,0.00052054,120]
[330047803,1718968242305,-223.08285004,0.00052054,120]
[330047804,1718968242317,-396.61609874,0.00052054,120]
[330047805,1718968242330,-427.28390126,0.00052054,120]
[330047806,1718968242339,-72.71609874,0.00052054,120]
[330047816,1718968243271,-434.70531022,0.00052054,120]
[330047817,1718968243281,-500.0,0.00052054,120]
[330047818,1718968243290,-500.0,0.00052054,120]
[330047819,1718968243300,-500.0,0.00052054,120]
[330047820,1718968243310,-500.0,0.00052054,120]
[330047821,1718968243321,-505.76708539,0.00052054,120]
[330047822,1718968243330,-500.0,0.00052054,120]
[330047823,1718968243338,-500.0,0.00052054,120]
[330047824,1718968243347,-500.0,0.00052054,120]
[330047825,1718968243356,-500.0,0.00052054,120]
[330047826,1718968243366,-501.38662639,0.00052054,7]
[330047827,1718968243374,-500.0,0.00052054,120]
[330047828,1718968243384,-399.03565368,0.00052054,120]
[330047829,1718968243396,-100.96434632,0.00052054,120]
[330047830,1718968243405,-500.0,0.00052054,120]
[330047831,1718968243414,-500.0,0.00052054,120]
[330047832,1718968243423,-500.0,0.00052054,120]
[330047833,1718968243433,-502.920258,0.00052054,120]
[330047834,1718968243442,-500.0,0.00052054,120]
[330047835,1718968243451,-250.0,0.00052054,120]
[330047837,1718968243460,-500.0,0.00052054,120]
[330047839,1718968243470,-500.0,0.00052054,120]
[330047841,1718968243479,-500.0,0.00052054,120]
[330047842,1718968243488,-500.0,0.00052054,120]
[330047844,1718968243497,-643.77,0.00052054,120]
[330047846,1718968243506,-500.0,0.00052054,120]
[330047847,1718968243515,-500.0,0.00052054,120]
[330047848,1718968243525,-500.0,0.00052054,120]
[330047849,1718968243534,-500.0,0.00052054,120]
[330047850,1718968243544,-512.74045205,0.00052054,120]
[330047851,1718968243553,-500.0,0.00052054,120]
[330047852,1718968243565,-500.0,0.00052054,120]
[330047853,1718968243574,-500.0,0.00052054,120]
[330047854,1718968243583,-188.37814953,0.00052054,120]
[330047855,1718968243592,-500.0,0.00052054,120]
[330047856,1718968243601,-500.0,0.00052054,120]
[330047857,1718968243610,-172.92494823,0.00052054,120]
[330047858,1718968243620,-500.0,0.00052054,120]
[330047859,1718968243629,-500.0,0.00052054,120]
[330047860,1718968243639,-500.0,0.00052054,120]
[330047861,1718968243648,-500.0,0.00052054,120]
[330047862,1718968243658,-500.0,0.00052054,120]
[330047863,1718968243667,-504.76488105,0.00052054,120]
[330047864,1718968243677,-500.0,0.00052054,120]
[330047865,1718968243687,-501.98977428,0.00052054,120]
[330047866,1718968243696,-1333.31,0.00052054,120]
[330047867,1718968243707,-1332.04,0.00052054,120]
[330047868,1718968243716,-500.0,0.00052054,120]
[330047869,1718968243727,-500.0,0.00052054,120]
[330047870,1718968243737,-500.0,0.00052054,120]
[330047871,1718968243746,-507.54751128,0.00052054,120]
[330047872,1718968243756,-340.33031525,0.00052054,120]
[330047873,1718968243911,-60.39558521,0.00050972,4]
[330047874,1718968243922,-94.3645366,0.00050972,4]
[330047875,1718968243932,-159.66968475,0.00052054,120]
[330047876,1718968243941,-500.0,0.00052054,120]
[330047877,1718968243950,-500.0,0.00052054,120]
[330047878,1718968243959,-500.0,0.00052054,120]
[330047879,1718968243968,-500.0,0.00052054,120]
[330047880,1718968243978,-500.0,0.00052054,120]
[330047881,1718968243987,-500.0,0.00052054,120]
[330047882,1718968243996,-500.0,0.00052054,30]
[330047883,1718968244006,-23.68035358,0.00052054,120]
[330047884,1718968244018,-1281.32964642,0.00052054,120]
[330047885,1718968244028,-500.0,0.00052054,120]
[330047886,1718968244038,-500.0,0.00052054,120]
[330047887,1718968244048,-500.0,0.00052054,120]
[330047888,1718968244057,-840.69,0.00052054,120]
[330047889,1718968244070,-500.0,0.00052054,120]
[330047890,1718968244081,-500.0,0.00052054,120]
[330047891,1718968244091,-500.0,0.00052054,120]
[330047892,1718968244101,-344.24764209,0.00052054,120]
[330047893,1718968244111,-687.21,0.00052054,120]
[330047894,1718968244120,-600.0,0.00052054,120]
[330047895,1718968244130,-500.0,0.00052054,120]
[330047896,1718968244139,-500.0,0.00052054,120]
[330047897,1718968244149,-500.0,0.00052054,120]
[330047898,1718968244158,-503.58507705,0.00052054,120]
[330047899,1718968244168,-500.0,0.00052054,2]
[330047900,1718968244177,-500.0,0.00052054,120]
[330047901,1718968244187,-500.0,0.00052054,120]
[330047902,1718968244196,-151.0,0.00052054,14]
[330047903,1718968244207,-500.0,0.00052054,120]
[330047904,1718968244216,-10.18350354,0.00052054,120]
[330047905,1718968244229,-489.81649646,0.00052054,120]
[330047906,1718968244238,-151.0,0.00052054,14]
[330047907,1718968244248,-500.0,0.00052054,120]
[330047908,1718968244257,-500.0,0.00052054,120]
[330047909,1718968244267,-500.0,0.00052054,120]
[330047910,1718968244276,-151.0,0.00052054,14]
[330047911,1718968244286,-500.0,0.00052054,120]
[330047912,1718968244295,-500.0,0.00052054,120]
[330047913,1718968244305,-451.40493116,0.00052054,120]
[330047914,1718968244319,-48.59506884,0.00052054,120]
[330047915,1718968244330,-500.0,0.00052054,120]
[330047916,1718968244339,-500.0,0.00052054,120]
[330047917,1718968244349,-500.0,0.00052054,20]
[330047918,1718968244358,-589.21,0.00052054,120]
[330047919,1718968244368,-584.89,0.00052054,120]
[330047920,1718968244377,-500.0,0.00052054,120]
[330047921,1718968244386,-2040.44,0.00052054,120]
[330047922,1718968244395,-500.0,0.00052054,120]
[330047923,1718968244404,-500.0,0.00052054,120]
[330047924,1718968244414,-951.4,0.00052054,120]
[330047925,1718968244423,-519.69134798,0.00052054,120]
[330047926,1718968244433,-1109.19,0.00052054,120]
[330047927,1718968244442,-2681.98,0.00052054,120]
[330047928,1718968244451,-500.0,0.00052054,2]
[330047929,1718968244528,-1229.85,0.00052054,120]
[330047930,1718968244538,-690.66,0.00052054,120]
[330047931,1718968244548,-500.0,0.00052054,120]
[330047932,1718968244557,-504.59206977,0.00052054,120]
[330047933,1718968244568,-383.71975531,0.00052054,120]
[330047934,1718968244577,-511.64826402,0.00052054,120]
[330047935,1718968244588,-502.79049257,0.00052054,120]
[330047936,1718968244598,-500.0,0.00052054,120]
[330047937,1718968244608,-500.0,0.00052054,120]
[330047938,1718968244617,-241.50600001,0.00052054,120]
[330047939,1718968244626,-500.0,0.00052054,120]
[330047940,1718968244635,-500.0,0.00052054,120]
[330047941,1718968244646,-523.90350244,0.00052054,120]
[330047942,1718968244655,-500.0,0.00052054,120]
[330047943,1718968244665,-646.72,0.00052054,120]
[330047944,1718968244674,-500.0,0.00052054,120]
[330047945,1718968244684,-500.0,0.00052054,120]
[330047946,1718968244693,-500.0,0.00052054,30]
[330047947,1718968244703,-500.0,0.00052054,120]
[330047948,1718968244713,-469.88532148,0.00052054,120]
[330047949,1718968244723,-500.0,0.00052054,120]
[330047950,1718968244733,-615.48,0.00052054,120]
[330047951,1718968244742,-792.77,0.00052054,120]
[330047952,1718968244751,-500.0,0.00052054,120]
[330047953,1718968244761,-500.0,0.00052054,120]
[330047954,1718968244776,-500.0,0.00052054,120]
[330047955,1718968244785,-500.0,0.00052054,120]
[330047956,1718968244794,-500.0,0.00052054,120]
[330047957,1718968244803,-500.0,0.00052054,120]
[330047958,1718968244816,-167.766167,0.00052054,14]
[330047959,1718968244826,-520.24757804,0.00052054,120]
[330047960,1718968244835,-2467.89,0.00052054,120]
[330047961,1718968244847,-2000.0,0.00052054,5]
[330047962,1718968244857,-500.0,0.00052054,120]
[330047963,1718968244866,-500.0,0.00052054,120]
[330047964,1718968244876,-500.0,0.00052054,120]
[330047965,1718968244885,-500.0,0.00052054,120]
[330047966,1718968244895,-985.5,0.00052054,120]
[330047967,1718968244905,-500.0,0.00052054,120]
[330047968,1718968244914,-500.0,0.00052054,120]
[330047969,1718968244923,-1474.24,0.00052054,120]
[330047970,1718968244932,-504.65462272,0.00052054,120]
[330047971,1718968244943,-338.62578509,0.00052054,10]
[330047972,1718968244953,-892.8,0.00052054,120]
[330047973,1718968244962,-569.98328969,0.00052054,120]
[330047974,1718968244971,-500.0,0.00052054,120]
[330047975,1718968244981,-500.0,0.00052054,120]
[330047976,1718968244990,-500.0,0.00052054,120]
[330047977,1718968245000,-500.0,0.00052054,120]
[330047978,1718968245009,-500.0,0.00052054,120]
[330047979,1718968245018,-500.0,0.00052054,120]
[330047980,1718968245027,-500.0,0.00052054,120]
[330047981,1718968245037,-2189.98,0.00052054,120]
[330047982,1718968245047,-500.0,0.00052054,120]
[330047983,1718968245056,-500.0,0.00052054,120]
[330047984,1718968245067,-500.0,0.00052054,120]
[330047985,1718968245077,-500.0,0.00052054,120]
[330047986,1718968245087,-500.0,0.00052054,120]
[330047987,1718968245097,-942.19,0.00052054,120]
[330047988,1718968245107,-500.0,0.00052054,120]
[330047989,1718968245116,-500.0,0.00052054,120]
[330047990,1718968245126,-500.0,0.00052054,120]
[330047991,1718968245135,-1087.27,0.00052054,120]
[330047992,1718968245145,-500.0,0.00052054,120]
[330047993,1718968245155,-632.01,0.00052054,120]
[330047994,1718968245164,-500.0,0.00052054,120]
[330047995,1718968245174,-595.48,0.00052054,120]
[330047996,1718968245184,-500.0,0.00052054,120]
[330047997,1718968245194,-500.0,0.00052054,120]
[330047998,1718968245204,-510.46527343,0.00052054,120]
[330047999,1718968245214,-500.0,0.00052054,120]
[330048000,1718968245223,-500.0,0.00052054,120]
[330048001,1718968245234,-500.0,0.00052054,120]
[330048002,1718968245244,-500.0,0.00052054,120]
[330048003,1718968245254,-521.52615653,0.00052054,120]
[330048004,1718968245263,-500.0,0.00052054,120]
[330048005,1718968245273,-958.06,0.00052054,120]
[330048006,1718968245282,-280.072934,0.00052054,14]
[330048007,1718968245292,-500.0,0.00052054,120]
[330048008,1718968245302,-1500.0,0.00052054,120]
[330048009,1718968245312,-500.0,0.00052054,120]
[330048010,1718968245322,-500.0,0.00052054,120]
[330048011,1718968245331,-500.0,0.00052054,120]
[330048012,1718968245340,-1623.8,0.00052054,120]
[330048013,1718968245350,-500.0,0.00052054,120]
[330048014,1718968245361,-542.09,0.00052054,120]
[330048015,1718968245371,-955.25,0.00052054,120]
[330048016,1718968245381,-500.0,0.00052054,120]
[330048017,1718968245391,-500.0,0.00052054,120]
[330048018,1718968245400,-1795.16,0.00052054,120]
[330048019,1718968245410,-151.0,0.00052054,14]
[330048020,1718968245420,-484.3769123,0.00052054,120]
[330048021,1718968245430,-500.0,0.00052054,120]
[330048022,1718968245440,-1074.31,0.00052054,120]
[330048023,1718968245450,-500.0,0.00052054,120]
[330048024,1718968245460,-151.0,0.00052054,14]
[330048025,1718968245470,-500.0,0.00052054,120]
[330048026,1718968245481,-1444.4,0.00052054,120]
[330048027,1718968245490,-1000.0,0.00052054,10]
[330048028,1718968245501,-1000.0,0.00052054,10]
[330048029,1718968245510,-1000.0,0.00052054,10]
[330048030,1718968245520,-1000.0,0.00052054,10]
[330048031,1718968245529,-1000.0,0.00052054,10]
[330048032,1718968245538,-1000.0,0.00052054,10]
[330048033,1718968245548,-1000.0,0.00052054,10]
[330048034,1718968245557,-1000.0,0.00052054,10]
[330048035,1718968245568,-1000.0,0.00052054,10]
[330048036,1718968245578,-1000.0,0.00052054,10]
[330048037,1718968245588,-1000.0,0.00052054,10]
[330048038,1718968245598,-1000.0,0.00052054,10]
[330048039,1718968245609,-500.0,0.00052054,120]
[330048040,1718968245620,-1000.0,0.00052054,10]
[330048041,1718968245630,-1000.0,0.00052054,10]
[330048042,1718968245640,-1000.0,0.00052054,10]
[330048043,1718968245650,-1000.0,0.00052054,10]
[330048044,1718968245659,-1000.0,0.00052054,10]
[330048045,1718968245670,-1024.97,0.00052054,120]
[330048046,1718968245679,-500.0,0.00052054,120]
[330048047,1718968245688,-1558.98,0.00052054,120]
[330048048,1718968245698,-581.91,0.00052054,120]
[330048049,1718968245768,-500.0,0.00052054,120]
[330048050,1718968245784,-4378.27,0.00052054,120]
[330048051,1718968245794,-1736.71,0.00052054,120]
[330048052,1718968245805,-428.15097289,0.00052054,120]
[330048053,1718968245815,-500.0,0.00052054,120]
[330048054,1718968245824,-2260.75,0.00052054,120]
[330048055,1718968245834,-500.0,0.00052054,120]
[330048056,1718968245843,-500.0,0.00052054,120]
[330048057,1718968245854,-506.98005029,0.00052054,120]
[330048058,1718968245863,-1925.9,0.00052054,120]
[330048059,1718968245872,-500.0,0.00052054,120]
[330048060,1718968245881,-500.0,0.00052054,120]
[330048061,1718968245890,-500.0,0.00052054,120]
[330048062,1718968245900,-1902.96,0.00052054,120]
[330048063,1718968245910,-500.0,0.00052054,120]
[330048064,1718968245920,-500.0,0.00052054,120]
[330048065,1718968245929,-613.15,0.00052054,120]
[330048066,1718968245938,-500.0,0.00052054,120]
[330048067,1718968245948,-500.0,0.00052054,120]
[330048068,1718968245957,-2481.5,0.00052054,120]
[330048069,1718968245967,-2481.5,0.00052054,120]
[330048070,1718968245975,-2481.5,0.00052054,120]
[330048071,1718968245985,-20568.31739676,0.00052054,120]
[330048072,1718968246004,-12457.49260324,0.00052054,120]
[330048073,1718968246013,-2481.5,0.00052054,120]
[330048074,1718968246023,-2481.5,0.00052054,120]
[330048075,1718968246035,-2481.5,0.00052054,120]
[330048076,1718968246045,-821.4,0.00052054,120]
[330048077,1718968246054,-2481.5,0.00052054,120]
[330048078,1718968246064,-2481.5,0.00052054,120]
[330048079,1718968246073,-2481.5,0.00052054,120]
[330048080,1718968246082,-2481.5,0.00052054,120]
[330048081,1718968246092,-2481.5,0.00052054,120]
[330048083,1718968246101,-2481.5,0.00052054,120]
[330048085,1718968246111,-2481.5,0.00052054,120]
[330048086,1718968246120,-2481.5,0.00052054,120]
[330048088,1718968246130,-2481.5,0.00052054,120]
[330048091,1718968246140,-2481.5,0.00052054,120]
[330048092,1718968246150,-2481.5,0.00052054,120]
[330048095,1718968246159,-2481.5,0.00052054,120]
[330048098,1718968246170,-2481.5,0.00052054,120]
[330048100,1718968246180,-500.0,0.00052054,120]
[330048102,1718968246190,-2481.5,0.00052054,120]
[330048104,1718968246199,-2481.5,0.00052054,120]
[330048106,1718968246208,-151.0,0.00052054,14]
[330048108,1718968246218,-2481.5,0.00052054,120]
[330048109,1718968246227,-500.0,0.00052054,60]
[330048112,1718968246237,-2481.5,0.00052054,120]
[330048113,1718968246247,-2481.68021086,0.00052054,120]
[330048115,1718968246257,-500.0,0.00052054,120]
[330048117,1718968246266,-1943.64,0.00052054,120]
[330048119,1718968246275,-500.0,0.00052054,120]
[330048121,1718968246284,-151.0,0.00052054,14]
[330048122,1718968246293,-4875.55,0.00052054,120]
[330048123,1718968246301,-3108.99,0.00052054,21]
[330048124,1718968246310,-500.0,0.00052054,120]
[330048125,1718968246321,-500.0,0.00052054,120]
[330048126,1718968246329,-500.0,0.00052054,120]
[330048127,1718968246338,-500.0,0.00052054,120]
[330048128,1718968246348,-500.0,0.00052054,120]
[330048129,1718968246357,-500.0,0.00052054,120]
[330048130,1718968246366,-34063.55,0.00052054,120]
[330048131,1718968246375,-500.0,0.00052054,120]
[330048132,1718968246384,-6119.68,0.00052054,120]
[330048133,1718968246394,-596.64,0.00052054,120]
[330048134,1718968246403,-500.0,0.00052054,120]
[330048135,1718968246412,-500.0,0.00052054,120]
[330048136,1718968246421,-660.71,0.00052054,120]
[330048137,1718968246431,-586.88,0.00052054,120]
[330048138,1718968246440,-1709.73,0.00052054,120]
[330048139,1718968246450,-500.0,0.00052054,120]
[330048140,1718968246459,-878.37,0.00052054,120]
[330048141,1718968246468,-151.0,0.00052054,14]
[330048142,1718968246478,-6420.47,0.00052054,120]
[330048143,1718968246487,-565.08683533,0.00052054,120]
[330048144,1718968246496,-500.0,0.00052054,120]
[330048145,1718968246505,-17539.07,0.00052054,120]
[330048146,1718968246514,-500.0,0.00052054,120]
[330048147,1718968246524,-500.0,0.00052054,120]
[330048148,1718968246533,-500.0,0.00052054,7]
[330048149,1718968246541,-500.0,0.00052054,120]
[330048150,1718968246550,-500.0,0.00052054,7]
[330048151,1718968246559,-1307.78,0.00052054,120]
[330048152,1718968246570,-500.0,0.00052054,120]
[330048153,1718968246579,-500.0,0.00052054,120]
[330048154,1718968246587,-627.93,0.00052054,120]
[330048155,1718968246596,-500.0,0.00052054,120]
[330048156,1718968246605,-655.16,0.00052054,120]
[330048157,1718968246615,-500.0,0.00052054,120]
[330048158,1718968246624,-500.0,0.00052054,120]
[330048159,1718968246634,-1271.08,0.00052054,120]
[330048160,1718968246643,-500.0,0.00052054,120]
[330048161,1718968246652,-500.0,0.00052054,120]
[330048162,1718968246661,-953.62,0.00052054,120]
[330048163,1718968246671,-521.16828657,0.00052054,120]
[330048164,1718968246680,-500.0,0.00052054,120]
[330048165,1718968246689,-531.90645372,0.00052054,120]
[330048166,1718968246698,-151.0,0.00052054,14]
[330048167,1718968246707,-500.0,0.00052054,120]
[330048168,1718968246716,-500.0,0.00052054,2]
[330048169,1718968246727,-500.0,0.00052054,120]
[330048170,1718968246735,-500.0,0.00052054,120]
[330048171,1718968246744,-500.0,0.00052054,120]
[330048172,1718968246753,-500.0,0.00052054,120]
[330048173,1718968246763,-5619.59,0.00052054,120]
[330048174,1718968246779,-3000.0,0.00052054,120]
[330048175,1718968246788,-500.0,0.00052054,120]
[330048176,1718968246797,-318.491105,0.00052054,14]
[330048177,1718968246806,-1191.97,0.00052054,120]
[330048178,1718968246818,-151.0,0.00052054,14]
[330048179,1718968246886,-432.0115166,0.00052054,120]
[330048180,1718968246896,-500.0,0.00052054,120]
[330048181,1718968246905,-500.0,0.00052054,120]
[330048182,1718968246915,-318.491105,0.00052054,14]
[330048183,1718968246924,-500.0,0.00052054,120]
[330048184,1718968246933,-829.1,0.00052054,120]
[330048185,1718968246942,-500.0,0.00052054,120]
[330048186,1718968246952,-564.63,0.00052054,120]
[330048187,1718968246961,-529.85654432,0.00052054,120]
[330048188,1718968246970,-500.0,0.00052054,120]
[330048189,1718968246979,-256.17151903,0.00052054,120]
[330048190,1718968246989,-500.0,0.00052054,120]